[Event "LJ Slovak Open 2022"]
[Site "Liptovsky Jan"]
[Date "2022.06.24"]
[Round "3.3"]
[White "Ambrozi, Peter"]
[Black "Karas, Marek"]
[Result "0-1"]
[ECO "D02"]
[WhiteElo "1994"]
[BlackElo "2292"]
[Annotator "NA RC"]
[PlyCount "43"]
[EventDate "2022.06.23"]
[EventType "swiss"]
[EventCountry "SVK"]
[SourceTitle "playchess.com"]
[Source "ChessBase"]
[SourceQuality "1"]
[TimeControl "3600+30"]

1. d4 {[%emt 0:00:05]} Nf6 {[%emt 0:01:37]} 2. Nf3 {[%emt 0:00:09]} c5 {[%emt 0:00:40]} 3. g3 {[%emt 0:01:30]} cxd4 {[%emt 0:00:08]} 4. Nxd4 {[%emt 0:00:43]} e5 {[%emt 0:00:08]} 5. Nb3 {[%emt 0:00:34]} d5 {[%emt 0:00:55]} 6. Bg2 {[%emt 0:00:07]} a5 {[%emt 0:02:18]} 7. a4 {[%emt 0:02:18]} Bb4+ {[%emt 0:03:54]} 8. Bd2 {[%emt 0:01:50]} Bxd2+ {[%emt 0:00:25]} 9. Qxd2 {[%emt 0:01:57]} Nc6 {[%emt 0:01:25]} 10. O-O {[%emt 0:05:45]} O-O {[%emt 0:00:40]} 11. Nc3 {[%emt 0:03:41]} d4 {[%emt 0:01:35]} 12. Nb5 {[%emt 0:07:14]} Qb6 {[%emt 0:02:18]} 13. c4 {[%emt 0:00:30]} Be6 {[%emt 0:05:31]} 14. c5 {[%emt 0:02:37]} Qd8 {[%emt 0:00:09]} 15. Nc1 {[%emt 0:02:16]} Bd5 {[%emt 0:00:54]} 16. Bxd5 {[%emt 0:22:56]} Nxd5 {[%emt 0:16:46]} 17. Nd3 {[%emt 0:07:28]} e4 {[%emt 0:29:37]} 18. Nf4 {[%emt 0:07:50]} Qg5 {[%emt 0:00:30]} 19. Rad1 {[%emt 0:00:30]} e3 {[%emt 0:00:30]} 20. fxe3 {[%emt 0:00:30]} Nxe3 {[%emt 0:00:30]} 21. Ng2 {[%emt 0:00:30]} Qxc5 {[%emt 0:00:30]} 22. Nxe3 {[%emt 0:00:30]} 0-1

[Event "LJ Slovak Open 2022"]
[Site "Liptovsky Jan"]
[Date "2022.06.24"]
[Round "3.4"]
[White "Zetocha, Adrian"]
[Black "Vilimek, Vit"]
[Result "1/2-1/2"]
[ECO "A52"]
[WhiteElo "2331"]
[BlackElo "1972"]
[Annotator "RC"]
[PlyCount "115"]
[EventDate "2022.06.23"]
[EventType "swiss"]
[EventCountry "SVK"]
[SourceTitle "playchess.com"]
[Source "ChessBase"]
[SourceQuality "1"]
[TimeControl "3600+30"]

1. d4 {[%emt 0:00:14]} Nf6 {[%emt 0:00:06]} 2. c4 {[%emt 0:00:24]} e5 {[%emt 0:00:13]} 3. dxe5 {[%emt 0:00:40]} Ng4 {[%emt 0:00:02]} 4. Bf4 {[%emt 0:00:46]} g5 {[%emt 0:00:07]} 5. Bg3 {[%emt 0:00:59]} Nc6 {[%emt 0:00:18]} 6. Nf3 {[%emt 0:00:51]} Bg7 {[%emt 0:00:06]} 7. e4 {[%emt 0:09:33]} Ngxe5 {[%emt 0:00:30]} 8. Nxe5 {[%emt 0:02:08]} Nxe5 {[%emt 0:00:07]} 9. Nc3 {[%emt 0:05:30]} d6 {[%emt 0:00:51]} 10. Rc1 {[%emt 0:05:50]} h5 {[%emt 0:05:29]} 11. Be2 {[%emt 0:08:11]} h4 {[%emt 0:04:16]} 12. Bxe5 {[%emt 0:00:16]} Bxe5 {[%emt 0:00:02]} 13. O-O {[%emt 0:04:02]} Be6 {[%emt 0:06:17]} 14. Qd3 {[%emt 0:09:52]} c6 {[%emt 0:16:08]} 15. Nd1 {[%emt 0:01:11]} g4 {[%emt 0:02:56]} 16. Ne3 {[%emt 0:01:22]} Qg5 {[%emt 0:01:32]} 17. Nf5 {[%emt 0:05:42]} Bxf5 {[%emt 0:01:48]} 18. exf5 {[%emt 0:00:08]} Qf4 {[%emt 0:04:45]} 19. g3 {[%emt 0:03:58]} Qg5 {[%emt 0:07:36]} 20. Rc2 {[%emt 0:01:56]} O-O-O {[%emt 0:03:16]} 21. Bd1 {[%emt 0:00:40]} Rh6 {[%emt 0:06:25]} 22. Qe4 {[%emt 0:00:58]} hxg3 {[%emt 0:01:31]} 23. fxg3 {[%emt 0:00:28]} Rdh8 {[%emt 0:02:01]} 24. c5 {[%emt 0:02:13]} Bxg3 {[%emt 0:05:02]} 25. hxg3 {[%emt 0:00:21]} d5 {[%emt 0:00:02]} 26. Qf4 {[%emt 0:03:09]} Rh1+ {[%emt 0:01:13]} 27. Kf2 {[%emt 0:00:12]} Rxf1+ {[%emt 0:00:44]} 28. Kxf1 {[%emt 0:00:07]} Rh1+ {[%emt 0:00:03]} 29. Kg2 {[%emt 0:02:32]} Qxf4 {[%emt 0:00:57]} 30. gxf4 {[%emt 0:00:05]} Rxd1 {[%emt 0:00:04]} 31. Kg3 {[%emt 0:01:01]} Re1 {[%emt 0:00:34]} 32. Kxg4 {[%emt 0:00:13]} Kd7 {[%emt 0:00:18]} 33. Kg5 {[%emt 0:00:53]} Ke7 {[%emt 0:00:05]} 34. Rg2 {[%emt 0:00:17]} b6 {[%emt 0:01:24]} 35. cxb6 {[%emt 0:00:45]} axb6 {[%emt 0:00:01]} 36. b4 {[%emt 0:00:12]} d4 {[%emt 0:00:44]} 37. Rc2 {[%emt 0:00:44]} Rg1+ {[%emt 0:00:06]} 38. Kh4 {[%emt 0:00:05]} Kd6 {[%emt 0:00:06]} 39. a4 {[%emt 0:00:15]} c5 {[%emt 0:00:19]} 40. a5 {[%emt 0:00:33]} d3 {[%emt 0:00:22]} 41. Rc3 {[%emt 0:00:57]} cxb4 {[%emt 0:01:51]} 42. Rxd3+ {[%emt 0:00:06]} Kc6 {[%emt 0:00:31]} 43. axb6 {[%emt 0:00:51]} Kxb6 {[%emt 0:00:33]} 44. Rd8 {[%emt 0:00:42]} Kc6 {[%emt 0:00:37]} 45. Rb8 {[%emt 0:00:23]} Kc5 {[%emt 0:00:24]} 46. Rc8+ {[%emt 0:00:40]} Kd6 {[%emt 0:00:33]} 47. Rc4 {[%emt 0:00:19]} b3 {[%emt 0:00:33]} 48. Rb4 {[%emt 0:00:06]} Rb1 {[%emt 0:00:29]} 49. Kg5 {[%emt 0:00:04]} Kc5 {[%emt 0:00:30]} 50. Rb8 {[%emt 0:00:19]} Kc4 {[%emt 0:00:31]} 51. Kf6 {[%emt 0:00:13]} Rf1 {[%emt 0:00:29]} 52. Kxf7 {[%emt 0:00:12]} Rxf4 {[%emt 0:00:25]} 53. f6 {[%emt 0:00:06]} Kc3 {[%emt 0:00:34]} 54. Kg7 {[%emt 0:00:13]} Rg4+ {[%emt 0:00:17]} 55. Kh6 {[%emt 0:00:31]} Rh4+ {[%emt 0:00:44]} 56. Kg5 {[%emt 0:00:34]} Rh7 {[%emt 0:00:24]} 57. Kg6 {[%emt 0:00:13]} Rc7 {[%emt 0:00:07]} 58. f7 {[%emt 0:00:43]} 1/2-1/2

[Event "LJ Slovak Open 2022"]
[Site "Liptovsky Jan"]
[Date "2022.06.24"]
[Round "3.5"]
[White "Holly, Andrej"]
[Black "Spik, Peter"]
[Result "1-0"]
[ECO "A43"]
[WhiteElo "2214"]
[BlackElo "1969"]
[Annotator "RC"]
[PlyCount "87"]
[EventDate "2022.06.23"]
[EventType "swiss"]
[EventCountry "SVK"]
[SourceTitle "playchess.com"]
[Source "ChessBase"]
[SourceQuality "1"]
[TimeControl "3600+30"]

1. e4 {[%emt 0:00:06]} e6 {[%emt 0:00:11]} 2. d4 {[%emt 0:00:04]} c5 {[%emt 0:00:14]} 3. d5 {[%emt 0:00:22]} d6 {[%emt 0:00:05]} 4. Nc3 {[%emt 0:00:07]} Nf6 {[%emt 0:00:06]} 5. Bb5+ {[%emt 0:00:02]} Bd7 {[%emt 0:00:11]} 6. Bc4 {[%emt 0:00:05]} Be7 {[%emt 0:00:48]} 7. Nf3 {[%emt 0:04:19]} O-O {[%emt 0:00:23]} 8. O-O {[%emt 0:00:33]} exd5 {[%emt 0:00:16]} 9. Nxd5 {[%emt 0:00:59]} Bg4 {[%emt 0:04:12]} 10. Bf4 {[%emt 0:07:54]} Nxd5 {[%emt 0:01:52]} 11. Bxd5 {[%emt 0:00:01]} Nc6 {[%emt 0:00:20]} 12. c3 {[%emt 0:04:33]} Rb8 {[%emt 0:00:10]} 13. Qd3 {[%emt 0:00:33]} Kh8 {[%emt 0:02:30]} 14. Nd2 {[%emt 0:05:30]} Ne5 {[%emt 0:03:54]} 15. Bxe5 {[%emt 0:03:08]} dxe5 {[%emt 0:00:06]} 16. Qg3 {[%emt 0:01:07]} Be6 {[%emt 0:03:40]} 17. Qxe5 {[%emt 0:01:48]} Bd6 {[%emt 0:01:22]} 18. Qh5 {[%emt 0:00:23]} g6 {[%emt 0:02:42]} 19. Qf3 {[%emt 0:03:32]} Qg5 {[%emt 0:01:53]} 20. Qd3 {[%emt 0:04:16]} Rbd8 {[%emt 0:01:36]} 21. Nc4 {[%emt 0:02:14]} Bf4 {[%emt 0:01:51]} 22. Rad1 {[%emt 0:04:22]} b5 {[%emt 0:00:51]} 23. Na5 {[%emt 0:05:23]} c4 {[%emt 0:01:20]} 24. Qd4+ {[%emt 0:02:55]} Be5 {[%emt 0:01:57]} 25. Qe3 {[%emt 0:01:17]} Bf4 {[%emt 0:04:22]} 26. Qd4+ {[%emt 0:00:01]} Kg8 {[%emt 0:04:19]} 27. Nc6 {[%emt 0:01:53]} Bh3 {[%emt 0:02:15]} 28. g3 {[%emt 0:00:04]} Rd7 {[%emt 0:03:10]} 29. Rfe1 {[%emt 0:00:53]} Be6 {[%emt 0:03:17]} 30. h4 {[%emt 0:04:07]} Qh5 {[%emt 0:02:14]} 31. gxf4 {[%emt 0:00:33]} Qg4+ {[%emt 0:00:22]} 32. Kf1 {[%emt 0:00:12]} Qh3+ {[%emt 0:08:19]} 33. Ke2 {[%emt 0:00:06]} Bg4+ {[%emt 0:02:35]} 34. Kd2 {[%emt 0:00:02]} Bxd1 {[%emt 0:01:01]} 35. Rxd1 {[%emt 0:00:01]} Qxh4 {[%emt 0:01:51]} 36. e5 {[%emt 0:00:56]} Rc8 {[%emt 0:01:00]} 37. e6 {[%emt 0:01:10]} Rxd5 {[%emt 0:06:31]} 38. Qxd5 {[%emt 0:00:06]} Qxf2+ {[%emt 0:00:18]} 39. Kc1 {[%emt 0:00:21]} Qxf4+ {[%emt 0:01:32]} 40. Kb1 {[%emt 0:00:07]} Re8 {[%emt 0:02:58]} 41. e7 {[%emt 0:00:22]} Kg7 {[%emt 0:01:07]} 42. Qd4+ {[%emt 0:01:20]} Qxd4 {[%emt 0:00:14]} 43. cxd4 {[%emt 0:00:03]} f6 {[%emt 0:00:33]} 44. d5 {[%emt 0:00:06]} 1-0

[Event "LJ Slovak Open 2022"]
[Site "Liptovsky Jan"]
[Date "2022.06.24"]
[Round "3.6"]
[White "Varga, Lukas"]
[Black "Kolesar, Peter"]
[Result "1-0"]
[ECO "B27"]
[WhiteElo "2136"]
[BlackElo "1969"]
[Annotator "NA RC"]
[PlyCount "112"]
[EventDate "2022.06.23"]
[EventType "swiss"]
[EventCountry "SVK"]
[SourceTitle "playchess.com"]
[Source "ChessBase"]
[SourceQuality "1"]
[TimeControl "3600+30"]

1. e4 {[%emt 0:00:50]} c5 {[%emt 0:01:16]} 2. Nf3 {[%emt 0:00:07]} g6 {[%emt 0:00:14]} 3. c3 {[%emt 0:00:32]} Bg7 {[%emt 0:00:40]} 4. d4 {[%emt 0:00:28]} cxd4 {[%emt 0:01:49]} 5. cxd4 {[%emt 0:00:06]} d5 {[%emt 0:02:04]} 6. e5 {[%emt 0:00:09]} Bg4 {[%emt 0:11:45]} 7. Bb5+ {[%emt 0:01:18]} Nc6 {[%emt 0:00:17]} 8. Nbd2 {[%emt 0:00:35]} e6 {[%emt 0:00:39]} 9. Bxc6+ {[%emt 0:01:31]} bxc6 {[%emt 0:00:10]} 10. O-O {[%emt 0:00:02]} Qb6 {[%emt 0:01:25]} 11. h3 {[%emt 0:07:50]} Bxf3 {[%emt 0:01:02]} 12. Nxf3 {[%emt 0:02:07]} Ne7 {[%emt 0:01:04]} 13. Bg5 {[%emt 0:01:16]} h6 {[%emt 0:04:10]} 14. Bxe7 {[%emt 0:00:39]} Kxe7 {[%emt 0:00:02]} 15. Rc1 {[%emt 0:02:02]} Rhc8 {[%emt 0:00:31]} 16. Qd2 {[%emt 0:12:52]} Ke8 {[%emt 0:05:33]} 17. Rc2 {[%emt 0:02:08]} Bf8 {[%emt 0:02:01]} 18. Rfc1 {[%emt 0:00:28]} a5 {[%emt 0:00:26]} 19. Qe3 {[%emt 0:01:34]} a4 {[%emt 0:01:28]} 20. Ne1 {[%emt 0:00:27]} Ra5 {[%emt 0:00:21]} 21. Nd3 {[%emt 0:00:29]} Rb5 {[%emt 0:00:21]} 22. g3 {[%emt 0:01:32]} Kd7 {[%emt 0:11:02]} 23. Kg2 {[%emt 0:00:47]} Ke8 {[%emt 0:04:29]} 24. g4 {[%emt 0:02:14]} Qb7 {[%emt 0:02:10]} 25. Kh2 {[%emt 0:00:45]} Rb6 {[%emt 0:01:06]} 26. f4 {[%emt 0:01:57]} Be7 {[%emt 0:02:26]} 27. Qf2 {[%emt 0:00:53]} Kf8 {[%emt 0:06:14]} 28. f5 {[%emt 0:03:04]} Kg8 {[%emt 0:01:49]} 29. Rf1 {[%emt 0:01:11]} Rf8 {[%emt 0:00:41]} 30. f6 {[%emt 0:06:19]} Bd8 {[%emt 0:03:54]} 31. Qh4 {[%emt 0:00:26]} Kh7 {[%emt 0:00:34]} 32. g5 {[%emt 0:00:06]} h5 {[%emt 0:00:29]} 33. Rff2 {[%emt 0:00:18]} Rh8 {[%emt 0:00:34]} 34. Rg2 {[%emt 0:02:49]} Rb5 {[%emt 0:01:38]} 35. Rc1 {[%emt 0:02:55]} Bb6 {[%emt 0:00:28]} 36. Rgc2 {[%emt 0:00:44]} c5 {[%emt 0:01:33]} 37. dxc5 {[%emt 0:00:52]} Bc7 {[%emt 0:00:24]} 38. Qd4 {[%emt 0:01:40]} Ra8 {[%emt 0:00:43]} 39. Kg3 {[%emt 0:02:33]} Qb8 {[%emt 0:00:35]} 40. Kf4 {[%emt 0:00:20]} Kg8 {[%emt 0:00:50]} 41. Kf3 {[%emt 0:01:25]} Raa5 {[%emt 0:00:20]} 42. Qc3 {[%emt 0:01:00]} Qb7 {[%emt 0:00:25]} 43. Qd4 {[%emt 0:01:47]} Qb8 {[%emt 0:00:13]} 44. Rc3 {[%emt 0:00:29]} Qa7 {[%emt 0:01:20]} 45. R1c2 {[%emt 0:01:03]} Qb8 {[%emt 0:00:32]} 46. Ra3 {[%emt 0:00:48]} Qa7 {[%emt 0:00:16]} 47. Kg2 {[%emt 0:00:48]} Rb8 {[%emt 0:00:51]} 48. Qf2 {[%emt 0:00:58]} Rbb5 {[%emt 0:00:28]} 49. c6 {[%emt 0:00:46]} Qb8 {[%emt 0:00:22]} 50. Qd4 {[%emt 0:00:44]} Bb6 {[%emt 0:00:19]} 51. Qf4 {[%emt 0:00:30]} Bc7 {[%emt 0:00:12]} 52. Rxa4 {[%emt 0:02:25]} Rxa4 {[%emt 0:01:36]} 53. Qxa4 {[%emt 0:00:06]} Rb6 {[%emt 0:00:16]} 54. Kh1 {[%emt 0:01:22]} Bxe5 {[%emt 0:00:28]} 55. c7 {[%emt 0:01:06]} Bxc7 {[%emt 0:00:40]} 56. Rxc7 {[%emt 0:00:06]} Qd8 {[%emt 0:01:15]} 1-0

[Event "LJ Slovak Open 2022"]
[Site "Liptovsky Jan"]
[Date "2022.06.24"]
[Round "3.7"]
[White "Podjavorinsky, Michal"]
[Black "Skreko, Igor"]
[Result "1/2-1/2"]
[ECO "B26"]
[WhiteElo "1941"]
[BlackElo "2065"]
[Annotator "NA RC"]
[PlyCount "108"]
[EventDate "2022.06.23"]
[EventType "swiss"]
[EventCountry "SVK"]
[SourceTitle "playchess.com"]
[Source "ChessBase"]
[SourceQuality "1"]
[TimeControl "3600+30"]

1. e4 {[%emt 0:00:04]} c5 {[%emt 0:00:05]} 2. Nc3 {[%emt 0:00:06]} d6 {[%emt 0:00:04]} 3. d3 {[%emt 0:00:08]} g6 {[%emt 0:00:09]} 4. Be3 {[%emt 0:00:08]} Bg7 {[%emt 0:00:03]} 5. Qd2 {[%emt 0:00:27]} Nc6 {[%emt 0:00:05]} 6. g3 {[%emt 0:00:29]} Rb8 {[%emt 0:00:11]} 7. Bg2 {[%emt 0:00:11]} b5 {[%emt 0:00:12]} 8. Nge2 {[%emt 0:00:30]} b4 {[%emt 0:00:35]} 9. Nd1 {[%emt 0:00:16]} Nd4 {[%emt 0:00:38]} 10. O-O {[%emt 0:02:49]} e6 {[%emt 0:00:53]} 11. Nc1 {[%emt 0:08:08]} Bd7 {[%emt 0:02:53]} 12. c3 {[%emt 0:03:15]} bxc3 {[%emt 0:00:36]} 13. bxc3 {[%emt 0:00:15]} Nc6 {[%emt 0:00:16]} 14. Ne2 {[%emt 0:01:17]} Nge7 {[%emt 0:01:33]} 15. Bh6 {[%emt 0:00:49]} O-O {[%emt 0:00:09]} 16. Bxg7 {[%emt 0:00:13]} Kxg7 {[%emt 0:00:14]} 17. Ne3 {[%emt 0:00:49]} Qc7 {[%emt 0:03:04]} 18. Rfb1 {[%emt 0:02:59]} Rb7 {[%emt 0:03:02]} 19. Qc2 {[%emt 0:03:02]} Rfb8 {[%emt 0:00:31]} 20. Nc4 {[%emt 0:06:20]} Nc8 {[%emt 0:07:06]} 21. f4 {[%emt 0:08:24]} Nb6 {[%emt 0:03:48]} 22. Ne3 {[%emt 0:00:53]} Ne7 {[%emt 0:06:41]} 23. c4 {[%emt 0:06:22]} Na4 {[%emt 0:03:14]} 24. Rb3 {[%emt 0:00:42]} Bc6 {[%emt 0:07:46]} 25. Rab1 {[%emt 0:02:43]} Qa5 {[%emt 0:05:04]} 26. Kf2 {[%emt 0:02:38]} Rb4 {[%emt 0:01:31]} 27. g4 {[%emt 0:03:08]} Bd7 {[%emt 0:04:24]} 28. Nd1 {[%emt 0:02:56]} Nc6 {[%emt 0:02:07]} 29. Ndc3 {[%emt 0:01:22]} Nxc3 {[%emt 0:01:08]} 30. Qxc3+ {[%emt 0:00:27]} Kg8 {[%emt 0:02:03]} 31. Ra3 {[%emt 0:01:59]} Qd8 {[%emt 0:01:12]} 32. Rab3 {[%emt 0:00:26]} Qh4+ {[%emt 0:00:52]} 33. Kf3 {[%emt 0:00:09]} e5 {[%emt 0:02:54]} 34. f5 {[%emt 0:02:25]} gxf5 {[%emt 0:04:07]} 35. gxf5 {[%emt 0:00:46]} Nd4+ {[%emt 0:01:06]} 36. Nxd4 {[%emt 0:00:36]} Qf4+ {[%emt 0:00:14]} 37. Ke2 {[%emt 0:00:09]} exd4 {[%emt 0:03:10]} 38. Qd2 {[%emt 0:00:57]} Qxd2+ {[%emt 0:01:16]} 39. Kxd2 {[%emt 0:00:07]} a5 {[%emt 0:00:07]} 40. Bf3 {[%emt 0:01:51]} Kg7 {[%emt 0:00:49]} 41. Bd1 {[%emt 0:02:11]} Kf6 {[%emt 0:00:20]} 42. a3 {[%emt 0:00:49]} Rxb3 {[%emt 0:00:19]} 43. Rxb3 {[%emt 0:00:09]} Rxb3 {[%emt 0:00:53]} 44. Bxb3 {[%emt 0:00:06]} Kg5 {[%emt 0:00:43]} 45. Ke2 {[%emt 0:00:20]} Kh4 {[%emt 0:01:41]} 46. Kf2 {[%emt 0:00:09]} f6 {[%emt 0:00:22]} 47. Bd1 {[%emt 0:01:07]} Be8 {[%emt 0:00:07]} 48. Kg2 {[%emt 0:01:04]} Bh5 {[%emt 0:01:54]} 49. Bxh5 {[%emt 0:00:56]} Kxh5 {[%emt 0:00:06]} 50. Kg3 {[%emt 0:00:09]} Kg5 {[%emt 0:01:18]} 51. h4+ {[%emt 0:00:34]} Kh5 {[%emt 0:00:13]} 52. a4 {[%emt 0:00:35]} Kh6 {[%emt 0:00:16]} 53. Kg4 {[%emt 0:00:33]} Kg7 {[%emt 0:00:07]} 54. Kh5 {[%emt 0:00:32]} Kf7 {[%emt 0:01:02]} 1/2-1/2

[Event "LJ Slovak Open 2022"]
[Site "Liptovsky Jan"]
[Date "2022.06.24"]
[Round "3.8"]
[White "Kasperek, Ryszard"]
[Black "Elias, David"]
[Result "0-1"]
[ECO "B89"]
[WhiteElo "2068"]
[BlackElo "1901"]
[Annotator "NA RC"]
[PlyCount "70"]
[EventDate "2022.06.23"]
[EventType "swiss"]
[EventCountry "SVK"]
[SourceTitle "playchess.com"]
[Source "ChessBase"]
[SourceQuality "1"]
[TimeControl "3600+30"]

1. e4 {[%emt 0:00:34]} c5 {[%emt 0:01:23]} 2. Nf3 {[%emt 0:00:12]} d6 {[%emt 0:00:07]} 3. d4 {[%emt 0:00:31]} cxd4 {[%emt 0:00:16]} 4. Nxd4 {[%emt 0:00:07]} Nf6 {[%emt 0:00:18]} 5. Nc3 {[%emt 0:00:07]} Nc6 {[%emt 0:00:30]} 6. Bc4 {[%emt 0:01:18]} e6 {[%emt 0:00:14]} 7. Be3 {[%emt 0:00:29]} a6 {[%emt 0:00:14]} 8. Qe2 {[%emt 0:00:43]} Bd7 {[%emt 0:00:31]} 9. O-O-O {[%emt 0:17:02]} b5 {[%emt 0:01:45]} 10. Bb3 {[%emt 0:02:58]} b4 {[%emt 0:02:39]} 11. Na4 {[%emt 0:02:16]} Nxe4 {[%emt 0:10:43]} 12. Nb6 {[%emt 0:08:35]} Qxb6 {[%emt 0:03:08]} 13. Nxe6 {[%emt 0:00:24]} Qb7 {[%emt 0:07:37]} 14. Ng5 {[%emt 0:24:47]} Nxg5 {[%emt 0:10:22]} 15. Bxg5+ {[%emt 0:00:02]} Ne5 {[%emt 0:08:16]} 16. f4 {[%emt 0:00:16]} Be7 {[%emt 0:04:46]} 17. Bxe7 {[%emt 0:05:40]} Bg4 {[%emt 0:05:31]} 18. Qe3 {[%emt 0:01:12]} Qxe7 {[%emt 0:01:01]} 19. Rde1 {[%emt 0:00:03]} O-O {[%emt 0:04:28]} 20. fxe5 {[%emt 0:00:01]} dxe5 {[%emt 0:01:39]} 21. Qxe5 {[%emt 0:00:01]} Qd7 {[%emt 0:00:40]} 22. h3 {[%emt 0:01:13]} Rae8 {[%emt 0:00:49]} 23. Qf4 {[%emt 0:00:21]} Bh5 {[%emt 0:02:49]} 24. Qxb4 {[%emt 0:00:30]} Rxe1+ {[%emt 0:00:16]} 25. Rxe1 {[%emt 0:00:11]} Rd8 {[%emt 0:00:07]} 26. g4 {[%emt 0:00:58]} Bg6 {[%emt 0:00:30]} 27. a4 {[%emt 0:02:13]} h5 {[%emt 0:00:56]} 28. Kb1 {[%emt 0:01:04]} hxg4 {[%emt 0:00:46]} 29. hxg4 {[%emt 0:00:01]} Qc7 {[%emt 0:01:00]} 30. Re7 {[%emt 0:01:07]} Qg3 {[%emt 0:00:42]} 31. Ka2 {[%emt 0:00:12]} Rb8 {[%emt 0:00:31]} 32. Rb7 {[%emt 0:00:09]} Rc8 {[%emt 0:00:37]} 33. Qe7 {[%emt 0:00:24]} Qxg4 {[%emt 0:00:42]} 34. Bxf7+ {[%emt 0:00:03]} Kh8 {[%emt 0:01:04]} 35. Rb4 {[%emt 0:01:10]} Bxf7+ {[%emt 0:00:10]} 0-1

[Event "LJ Slovak Open 2022"]
[Site "Liptovsky Jan"]
[Date "2022.06.24"]
[Round "3.9"]
[White "Janousek, Petr"]
[Black "Gajdosik, Marian"]
[Result "1-0"]
[ECO "C41"]
[WhiteElo "2099"]
[BlackElo "1902"]
[Annotator "NA RC"]
[PlyCount "97"]
[EventDate "2022.06.23"]
[EventType "swiss"]
[EventCountry "SVK"]
[SourceTitle "playchess.com"]
[Source "ChessBase"]
[SourceQuality "1"]
[TimeControl "3600+30"]

1. e4 {[%emt 0:01:48]} e5 {[%emt 0:00:05]} 2. Nf3 {[%emt 0:00:27]} d6 {[%emt 0:00:05]} 3. d4 {[%emt 0:00:10]} Nd7 {[%emt 0:00:06]} 4. Bc4 {[%emt 0:01:39]} Qe7 {[%emt 0:00:16]} 5. O-O {[%emt 0:04:47]} h6 {[%emt 0:00:08]} 6. b3 {[%emt 0:03:36]} Qf6 {[%emt 0:01:58]} 7. Bb2 {[%emt 0:06:05]} Ne7 {[%emt 0:04:53]} 8. Na3 {[%emt 0:04:20]} c6 {[%emt 0:00:12]} 9. Be2 {[%emt 0:01:28]} Ng6 {[%emt 0:00:26]} 10. Nc4 {[%emt 0:01:12]} Be7 {[%emt 0:00:08]} 11. a4 {[%emt 0:00:46]} O-O {[%emt 0:01:57]} 12. Re1 {[%emt 0:04:08]} Rd8 {[%emt 0:03:45]} 13. Bf1 {[%emt 0:02:30]} Nb6 {[%emt 0:01:45]} 14. Ne3 {[%emt 0:01:31]} a5 {[%emt 0:03:05]} 15. Qd2 {[%emt 0:09:56]} Be6 {[%emt 0:00:19]} 16. c4 {[%emt 0:00:47]} c5 {[%emt 0:00:57]} 17. d5 {[%emt 0:02:12]} Bd7 {[%emt 0:08:40]} 18. Bc3 {[%emt 0:00:14]} Nc8 {[%emt 0:00:29]} 19. Bxa5 {[%emt 0:00:22]} b6 {[%emt 0:00:06]} 20. Bc3 {[%emt 0:00:02]} Nf4 {[%emt 0:01:52]} 21. Rad1 {[%emt 0:10:07]} Qg6 {[%emt 0:00:47]} 22. Nf5 {[%emt 0:00:47]} Bxf5 {[%emt 0:00:51]} 23. exf5 {[%emt 0:00:02]} Qxf5 {[%emt 0:00:17]} 24. Qe3 {[%emt 0:04:22]} Bg5 {[%emt 0:04:12]} 25. Nxg5 {[%emt 0:00:00]} Qxg5 {[%emt 0:00:08]} 26. Bd2 {[%emt 0:00:36]} Qf6 {[%emt 0:02:43]} 27. g3 {[%emt 0:01:46]} Ng6 {[%emt 0:00:24]} 28. Bc3 {[%emt 0:01:05]} Qg5 {[%emt 0:01:02]} 29. Qe2 {[%emt 0:01:39]} Nce7 {[%emt 0:00:07]} 30. Bd2 {[%emt 0:00:21]} Qf6 {[%emt 0:00:36]} 31. Bh3 {[%emt 0:00:49]} Nf5 {[%emt 0:00:09]} 32. Bxf5 {[%emt 0:00:40]} Qxf5 {[%emt 0:00:09]} 33. Bc3 {[%emt 0:00:23]} Ra7 {[%emt 0:02:22]} 34. Rd3 {[%emt 0:01:11]} Re7 {[%emt 0:01:10]} 35. Re3 {[%emt 0:00:26]} Rde8 {[%emt 0:00:24]} 36. Kg2 {[%emt 0:01:42]} h5 {[%emt 0:01:42]} 37. Rf3 {[%emt 0:00:51]} Qg4 {[%emt 0:01:16]} 38. Kh1 {[%emt 0:00:22]} h4 {[%emt 0:05:59]} 39. Re3 {[%emt 0:00:26]} Qg5 {[%emt 0:02:02]} 40. Bd2 {[%emt 0:00:34]} Qf5 {[%emt 0:02:12]} 41. Re4 {[%emt 0:01:23]} Kh7 {[%emt 0:03:18]} 42. gxh4 {[%emt 0:01:29]} Nf4 {[%emt 0:01:23]} 43. Bxf4 {[%emt 0:00:22]} exf4 {[%emt 0:00:07]} 44. Rxe7 {[%emt 0:00:16]} Rxe7 {[%emt 0:00:32]} 45. Qxe7 {[%emt 0:00:01]} Qh3 {[%emt 0:01:43]} 46. Qe4+ {[%emt 0:00:22]} g6 {[%emt 0:00:07]} 47. Qxf4 {[%emt 0:00:20]} Qc3 {[%emt 0:00:57]} 48. Qxf7+ {[%emt 0:00:11]} Kh6 {[%emt 0:00:06]} 49. Qf4+ {[%emt 0:00:06]} 1-0